Workbook

Sheet 2011
A1: Quickie Stock Market Game
A3: Name: | C3: Joseph Winder
A4: Period: | C4: 4
A5: It's January, 2011, and you have saved $500 to invest in the stock market. There are fifty stocks you can choose from. Click the "choose stock" button. Then in column F, choose how many shares of each stock you will purchase. You must stay as close to $500 as possible.
A8: MAKE SURE TO CHECK THE "ENABLE" BUTTON BEFORE BEGINNING!
A10: 2011
A12: 1 | B12: =VLOOKUP(C12,Stocks!$A$2:$I$101,2,FALSE) -> L-3 Communications | C12: 54 | D12: =VLOOKUP(C12,Stocks!$A$2:$I$101,3,FALSE) -> LLL | E12: =VLOOKUP(C12,Stocks!$A$2:$D$101,4,FALSE) -> 75.87 | F12: 1 | G12: =E12*F12 -> 75.87
A13: 2 | B13: =VLOOKUP(C13,Stocks!$A$2:$I$101,2,FALSE) -> L-3 Communications | C13: 54 | D13: =VLOOKUP(C13,Stocks!$A$2:$I$101,3,FALSE) -> LLL | E13: =VLOOKUP(C13,Stocks!$A$2:$D$101,4,FALSE) -> 75.87 | F13: 2 | G13: =E13*F13 -> 151.74
A14: 3 | B14: =VLOOKUP(C14,Stocks!$A$2:$I$101,2,FALSE) -> General Motors | C14: 38 | D14: =VLOOKUP(C14,Stocks!$A$2:$I$101,3,FALSE) -> GM | E14: =VLOOKUP(C14,Stocks!$A$2:$D$101,4,FALSE) -> 38.98 | F14: 1 | G14: 38.98
A15: 4 | B15: =VLOOKUP(C15,Stocks!$A$2:$I$101,2,FALSE) -> Amazon | C15: 5 | D15: =VLOOKUP(C15,Stocks!$A$2:$I$101,3,FALSE) -> AMZN | E15: =VLOOKUP(C15,Stocks!$A$2:$D$101,4,FALSE) -> 185.49 | F15: 1 | G15: 185.49
A16: 5 | B16: =VLOOKUP(C16,Stocks!$A$2:$I$101,2,FALSE) -> Pier 1 Imports | C16: 75 | D16: =VLOOKUP(C16,Stocks!$A$2:$I$101,3,FALSE) -> PIR | E16: =VLOOKUP(C16,Stocks!$A$2:$D$101,4,FALSE) -> 9.43 | F16: 5 | G16: 47.15
G17: =SUM(G12:G16) -> 499.23
B20: 2012 Increase | D20: ='2012'!M6 -> -27
B21: 2013 Increase | D21: ='2013'!M6 -> 197.2
B22: 2014 Increase | D22: ='2014'!M6 -> 409.2
B23: 2015 Increase | D23: ='2015'!M6 -> 359.37
B25: 2011 Portfolio: | D25: =G17 -> 499.23
B26: Today's Portfolio: | D26: =Today!M7 -> 1157.26 | F26: Print this Page Only!
B27: Cash Assets | D27: =Today!M8 -> 1142.82
B28: Less Initial Investment: | D28: =G17 -> 499.23
B29: TOTAL INCREASE: | D29: =D27-D28 -> 643.59

Sheet 2012
A1: 2012
A2: 2011 Investment Portfolio | E2: Jan, 2011 | F2: # of Shares | G2: Total | H2: Jan, 2012
E3: Stock Price | H3: Stock Price
A4: 1 | B4: ='2011'!B12 -> L-3 Communications | C4: ='2011'!C12 -> 54 | D4: ='2011'!D12 -> LLL | E4: ='2011'!E12 -> 75.87 | F4: ='2011'!F12 -> 1 | G4: =E4*F4 -> 75.87 | H4: =VLOOKUP(C4,Stocks!$A$2:$H$101,5,FALSE) -> 67.07 | I4: =H4-E4 -> -8.8 | J4: =F4*H4 -> 67.07
A5: 2 | B5: ='2011'!B13 -> L-3 Communications | C5: ='2011'!C13 -> 54 | D5: ='2011'!D13 -> LLL | E5: ='2011'!E13 -> 75.87 | F5: ='2011'!F13 -> 2 | G5: =E5*F5 -> 151.74 | H5: =VLOOKUP(C5,Stocks!$A$2:$H$101,5,FALSE) -> 67.07 | I5: =H5-E5 -> -8.8 | J5: =F5*H5 -> 134.14 | L5: Stock Portfolio
A6: 3 | B6: ='2011'!B14 -> General Motors | C6: ='2011'!C14 -> 38 | D6: ='2011'!D14 -> GM | E6: ='2011'!E14 -> 38.98 | F6: ='2011'!F14 -> 1 | G6: 38.98 | H6: =VLOOKUP(C6,Stocks!$A$2:$H$101,5,FALSE) -> 22.92 | I6: -16.06 | J6: 22.92 | L6: Market Gains: | M6: =J9-G9 -> -27
A7: 4 | B7: ='2011'!B15 -> Amazon | C7: ='2011'!C15 -> 5 | D7: ='2011'!D15 -> AMZN | E7: ='2011'!E15 -> 185.49 | F7: ='2011'!F15 -> 1 | G7: 185.49 | H7: =VLOOKUP(C7,Stocks!$A$2:$H$101,5,FALSE) -> 173.1 | I7: -12.39 | J7: 173.1 | L7: 2012 Portfolio: | M7: =J9 -> 472.23
A8: 5 | B8: ='2011'!B16 -> Pier 1 Imports | C8: ='2011'!C16 -> 75 | D8: ='2011'!D16 -> PIR | E8: ='2011'!E16 -> 9.43 | F8: ='2011'!F16 -> 5 | G8: 47.15 | H8: =VLOOKUP(C8,Stocks!$A$2:$H$101,5,FALSE) -> 15 | I8: 5.57 | J8: 75 | L8: 2012 Sell: | M8: =F20 -> 142.07
G9: =SUM(G4:G8) -> 499.23 | J9: =SUM(J4:J8) -> 472.23 | L9: 2012 Buy: | M9: =G30 -> 232.96
M10: =M7-M8+G30 -> 563.12
A11: SELL
L12: Cash
L13: Starting Cash | M13: 500
D14: Current | F14: Sell | L14: Liquid Assets | M14: =F20-G30 -> -90.89
D15: =D4 -> LLL | F15: =J4 -> 67.07 | L15: Total Cash | M15: =M13+M14 -> 409.11
D16: =D5 -> LLL
D17: =D6 -> GM
D18: =D7 -> AMZN
D19: =D8 -> PIR | F19: =J8 -> 75
F20: =SUM(F15:F19) -> 142.07
A22: BUY
B24: Buy | F24: Shares | G24: Total | H24: Companies
A25: 61 | B25: =IF(A25="","",IF(A25>0,VLOOKUP(A25,Stocks!$A$2:$C$101,2,FALSE))) -> Metlife | C25: =IF(A25="","",IF(A25>0,VLOOKUP(A25,Stocks!$A$2:$H$101,3,FALSE))) -> MET | E25: =IF(A25="","",IF(A25>0,VLOOKUP(A25,Stocks!$A$2:$H$101,5,FALSE))) -> 35.24 | F25: 3 | G25: =IF(A25="","",IF(A25>0,E25*F25)) -> 105.72 | H25: =IF(A25="",C4,A25) -> 61
B26: =IF(A26="","",IF(A26>0,VLOOKUP(A26,Stocks!$A$2:$C$101,2,FALSE))) ->  | C26: =IF(A26="","",IF(A26>0,VLOOKUP(A26,Stocks!$A$2:$H$101,3,FALSE))) ->  | E26: =IF(A26="","",IF(A26>0,VLOOKUP(A26,Stocks!$A$2:$H$101,5,FALSE))) ->  | G26: =IF(A26="","",IF(A26>0,E26*F26)) ->  | H26: =IF(A26="",C5,A26) -> 54
B27: =IF(A27="","",IF(A27>0,VLOOKUP(A27,Stocks!$A$2:$C$101,2,FALSE))) ->  | C27: =IF(A27="","",IF(A27>0,VLOOKUP(A27,Stocks!$A$2:$H$101,3,FALSE))) ->  | E27: =IF(A27="","",IF(A27>0,VLOOKUP(A27,Stocks!$A$2:$H$101,5,FALSE))) ->  | H27: 38
B28: =IF(A28="","",IF(A28>0,VLOOKUP(A28,Stocks!$A$2:$C$101,2,FALSE))) ->  | C28: =IF(A28="","",IF(A28>0,VLOOKUP(A28,Stocks!$A$2:$H$101,3,FALSE))) ->  | E28: =IF(A28="","",IF(A28>0,VLOOKUP(A28,Stocks!$A$2:$H$101,5,FALSE))) ->  | H28: 5
A29: 89 | B29: =IF(A29="","",IF(A29>0,VLOOKUP(A29,Stocks!$A$2:$C$101,2,FALSE))) -> Tyler Technologies | C29: =IF(A29="","",IF(A29>0,VLOOKUP(A29,Stocks!$A$2:$H$101,3,FALSE))) -> TYL | E29: =IF(A29="","",IF(A29>0,VLOOKUP(A29,Stocks!$A$2:$H$101,5,FALSE))) -> 31.81 | F29: 4 | G29: 127.24 | H29: 89
G30: =SUM(G25:G29) -> 232.96

Sheet 2013
A1: 2013
A2: 2012 Investment Portfolio | E2: Jan 2012 | F2: # of Shares | G2: Total | H2: Jan, 2013
E3: Stock Price | H3: Stock Price
A4: 1 | B4: =VLOOKUP(C4,Stocks!$A$2:$H$101,2,FALSE) -> Metlife | C4: ='2012'!H25 -> 61 | D4: =VLOOKUP(C4,Stocks!$A$2:$C$101,3,FALSE) -> MET | E4: =VLOOKUP(C4,Stocks!$A$2:$H$101,5,FALSE) -> 35.24 | F4: =IF('2012'!F25="",'2012'!F4,'2012'!F25) -> 3 | G4: =E4*F4 -> 105.72 | H4: =VLOOKUP(C4,Stocks!$A$2:$H$101,6,FALSE) -> 35.95 | I4: =H4-E4 -> 0.71 | J4: =F4*H4 -> 107.85
A5: 2 | B5: =VLOOKUP(C5,Stocks!$A$2:$H$101,2,FALSE) -> L-3 Communications | C5: ='2012'!H26 -> 54 | D5: =VLOOKUP(C5,Stocks!$A$2:$C$101,3,FALSE) -> LLL | E5: =VLOOKUP(C5,Stocks!$A$2:$H$101,5,FALSE) -> 67.07 | F5: =IF('2012'!F26="",'2012'!F5,'2012'!F26) -> 2 | G5: =E5*F5 -> 134.14 | H5: =VLOOKUP(C5,Stocks!$A$2:$H$101,6,FALSE) -> 77.71 | I5: =H5-E5 -> 10.64 | J5: =F5*H5 -> 155.42 | L5: Stock Portfolio
A6: 3 | B6: =VLOOKUP(C6,Stocks!$A$2:$H$101,2,FALSE) -> General Motors | C6: ='2012'!H27 -> 38 | D6: =VLOOKUP(C6,Stocks!$A$2:$C$101,3,FALSE) -> GM | E6: =VLOOKUP(C6,Stocks!$A$2:$H$101,5,FALSE) -> 22.92 | F6: =IF('2012'!F27="",'2012'!F6,'2012'!F27) -> 1 | G6: 22.92 | H6: =VLOOKUP(C6,Stocks!$A$2:$H$101,6,FALSE) -> 29.07 | I6: 6.15 | J6: 29.07 | L6: Total Increase: | M6: =J9-G9 -> 197.2
A7: 4 | B7: =VLOOKUP(C7,Stocks!$A$2:$H$101,2,FALSE) -> Amazon | C7: ='2012'!H28 -> 5 | D7: =VLOOKUP(C7,Stocks!$A$2:$C$101,3,FALSE) -> AMZN | E7: =VLOOKUP(C7,Stocks!$A$2:$H$101,5,FALSE) -> 173.1 | F7: =IF('2012'!F28="",'2012'!F7,'2012'!F28) -> 1 | G7: 173.1 | H7: =VLOOKUP(C7,Stocks!$A$2:$H$101,6,FALSE) -> 267.94 | I7: 94.84 | J7: 267.94 | L7: 2013 Portfolio: | M7: =J9 -> 760.32
A8: 5 | B8: =VLOOKUP(C8,Stocks!$A$2:$H$101,2,FALSE) -> Tyler Technologies | C8: ='2012'!H29 -> 89 | D8: =VLOOKUP(C8,Stocks!$A$2:$C$101,3,FALSE) -> TYL | E8: =VLOOKUP(C8,Stocks!$A$2:$H$101,5,FALSE) -> 31.81 | F8: =IF('2012'!F29="",'2012'!F8,'2012'!F29) -> 4 | G8: 127.24 | H8: =VLOOKUP(C8,Stocks!$A$2:$H$101,6,FALSE) -> 50.01 | I8: 18.2 | J8: 200.04 | L8: 2013 Sell: | M8: =F20 -> 263.27
G9: =SUM(G4:G8) -> 563.12 | J9: =SUM(J4:J8) -> 760.32 | L9: 2013 Buy: | M9: =G30 -> 237.5
M10: =M7-M8+M9 -> 734.55
A11: SELL
L12: Cash
L13: Starting Cash | M13: ='2012'!M15 -> 409.11
D14: Current | F14: Sell | L14: Liquid Assets | M14: =F20-G30 -> 25.77
D15: =D4 -> MET | F15: =J4 -> 107.85 | L15: Total Cash | M15: =M13+M14 -> 434.88
D16: =D5 -> LLL | F16: =J5 -> 155.42
D17: =D6 -> GM
D18: =D7 -> AMZN
D19: =D8 -> TYL
F20: =SUM(F15:F19) -> 263.27
A22: BUY
B24: Buy | F24: Shares | G24: Total
A25: 29 | B25: =IF(A25="","",IF(A25>0,VLOOKUP(A25,Stocks!$A$2:$C$101,2,FALSE))) -> Dr Pepper Snapple | C25: =IF(A25="","",IF(A25>0,VLOOKUP(A25,Stocks!$A$2:$H$101,3,FALSE))) -> DPS | E25: =IF(A25="","",IF(A25>0,VLOOKUP(A25,Stocks!$A$2:$H$101,6,FALSE))) -> 45.3 | F25: 1 | G25: =IF(A25="","",IF(A25>0,E25*F25)) -> 45.3 | H25: =IF(A25="",C4,A25) -> 29
A26: 86 | B26: =IF(A26="","",IF(A26>0,VLOOKUP(A26,Stocks!$A$2:$C$101,2,FALSE))) -> Toyota | C26: =IF(A26="","",IF(A26>0,VLOOKUP(A26,Stocks!$A$2:$H$101,3,FALSE))) -> TM | E26: =IF(A26="","",IF(A26>0,VLOOKUP(A26,Stocks!$A$2:$H$101,6,FALSE))) -> 96.1 | F26: 2 | G26: =IF(A26="","",IF(A26>0,E26*F26)) -> 192.2 | H26: =IF(A26="",C5,A26) -> 86
B27: =IF(A27="","",IF(A27>0,VLOOKUP(A27,Stocks!$A$2:$C$101,2,FALSE))) ->  | C27: =IF(A27="","",IF(A27>0,VLOOKUP(A27,Stocks!$A$2:$H$101,3,FALSE))) ->  | E27: =IF(A27="","",IF(A27>0,VLOOKUP(A27,Stocks!$A$2:$H$101,6,FALSE))) ->  | H27: 38
B28: =IF(A28="","",IF(A28>0,VLOOKUP(A28,Stocks!$A$2:$C$101,2,FALSE))) ->  | C28: =IF(A28="","",IF(A28>0,VLOOKUP(A28,Stocks!$A$2:$H$101,3,FALSE))) ->  | E28: =IF(A28="","",IF(A28>0,VLOOKUP(A28,Stocks!$A$2:$H$101,6,FALSE))) ->  | H28: 5
B29: =IF(A29="","",IF(A29>0,VLOOKUP(A29,Stocks!$A$2:$C$101,2,FALSE))) ->  | C29: =IF(A29="","",IF(A29>0,VLOOKUP(A29,Stocks!$A$2:$H$101,3,FALSE))) ->  | E29: =IF(A29="","",IF(A29>0,VLOOKUP(A29,Stocks!$A$2:$H$101,6,FALSE))) ->  | H29: 89
G30: =SUM(G25:G29) -> 237.5

Sheet 2014
A1: 2014
A2: 2013 Investment Portfolio | E2: Jan 2013 | F2: # of Shares | G2: Total | H2: Jan, 2014
E3: Stock Price | H3: Stock Price
A4: 1 | B4: =VLOOKUP(C4,Stocks!$A$2:$H$101,2,FALSE) -> Dr Pepper Snapple | C4: ='2013'!H25 -> 29 | D4: =VLOOKUP(C4,Stocks!$A$2:$C$101,3,FALSE) -> DPS | E4: =VLOOKUP(C4,Stocks!$A$2:$H$101,6,FALSE) -> 45.3 | F4: =IF('2013'!F25="",'2013'!F4,'2013'!F25) -> 1 | G4: =E4*F4 -> 45.3 | H4: =VLOOKUP(C4,Stocks!$A$2:$H$101,7,FALSE) -> 47.88 | I4: =H4-E4 -> 2.58 | J4: =F4*H4 -> 47.88
A5: 2 | B5: =VLOOKUP(C5,Stocks!$A$2:$H$101,2,FALSE) -> Toyota | C5: ='2013'!H26 -> 86 | D5: =VLOOKUP(C5,Stocks!$A$2:$C$101,3,FALSE) -> TM | E5: =VLOOKUP(C5,Stocks!$A$2:$H$101,6,FALSE) -> 96.1 | F5: =IF('2013'!F26="",'2013'!F5,'2013'!F26) -> 2 | G5: =E5*F5 -> 192.2 | H5: =VLOOKUP(C5,Stocks!$A$2:$H$101,7,FALSE) -> 119.19 | I5: =H5-E5 -> 23.09 | J5: =F5*H5 -> 238.38 | L5: Stock Portfolio
A6: 3 | B6: =VLOOKUP(C6,Stocks!$A$2:$H$101,2,FALSE) -> General Motors | C6: ='2013'!H27 -> 38 | D6: =VLOOKUP(C6,Stocks!$A$2:$C$101,3,FALSE) -> GM | E6: =VLOOKUP(C6,Stocks!$A$2:$H$101,6,FALSE) -> 29.07 | F6: =IF('2013'!F27="",'2013'!F6,'2013'!F27) -> 1 | G6: 29.07 | H6: =VLOOKUP(C6,Stocks!$A$2:$H$101,7,FALSE) -> 36.08 | I6: 7.01 | J6: 36.08 | L6: Total Increase: | M6: =J9-G9 -> 409.2
A7: 4 | B7: =VLOOKUP(C7,Stocks!$A$2:$H$101,2,FALSE) -> Amazon | C7: ='2013'!H28 -> 5 | D7: =VLOOKUP(C7,Stocks!$A$2:$C$101,3,FALSE) -> AMZN | E7: =VLOOKUP(C7,Stocks!$A$2:$H$101,6,FALSE) -> 267.94 | F7: =IF('2013'!F28="",'2013'!F7,'2013'!F28) -> 1 | G7: 267.94 | H7: =VLOOKUP(C7,Stocks!$A$2:$H$101,7,FALSE) -> 399.61 | I7: 131.67 | J7: 399.61 | L7: 2013 Portfolio: | M7: ='2013'!M10 -> 734.55
A8: 5 | B8: =VLOOKUP(C8,Stocks!$A$2:$H$101,2,FALSE) -> Tyler Technologies | C8: ='2013'!H29 -> 89 | D8: =VLOOKUP(C8,Stocks!$A$2:$C$101,3,FALSE) -> TYL | E8: =VLOOKUP(C8,Stocks!$A$2:$H$101,6,FALSE) -> 50.01 | F8: =IF('2013'!F29="",'2013'!F8,'2013'!F29) -> 4 | G8: 200.04 | H8: =VLOOKUP(C8,Stocks!$A$2:$H$101,7,FALSE) -> 105.45 | I8: 55.44 | J8: 421.8 | L8: 2013 Sell: | M8: =F20 -> 421.8
G9: =SUM(G4:G8) -> 734.55 | J9: =SUM(J4:J8) -> 1143.75 | L9: 2013 Buy: | M9: =G30 -> 815.25
L10: Total Gain | M10: =M7-M8+M9 -> 1128
A11: SELL
L12: Cash
L13: Starting Cash | M13: ='2013'!M15 -> 434.88
D14: Current | F14: Sell | L14: Liquid Assets | M14: =F20-G30 -> -393.45
D15: =D4 -> DPS | L15: Total Cash | M15: =M13+M14 -> 41.43
D16: =D5 -> TM
D17: =D6 -> GM
D18: =D7 -> AMZN
D19: =D8 -> TYL | F19: =J8 -> 421.8
F20: =SUM(F15:F19) -> 421.8
A22: BUY
B24: Buy | F24: Shares | G24: Total
B25: =IF(A25="","",IF(A25>0,VLOOKUP(A25,Stocks!$A$2:$C$101,2,FALSE))) ->  | C25: =IF(A25="","",IF(A25>0,VLOOKUP(A25,Stocks!$A$2:$H$101,3,FALSE))) ->  | E25: =IF(A25="","",IF(A25>0,VLOOKUP(A25,Stocks!$A$2:$H$101,7,FALSE))) ->  | G25: =IF(A25="","",IF(A25>0,E25*F25)) ->  | H25: =IF(A25="",C4,A25) -> 29
B26: =IF(A26="","",IF(A26>0,VLOOKUP(A26,Stocks!$A$2:$C$101,2,FALSE))) ->  | C26: =IF(A26="","",IF(A26>0,VLOOKUP(A26,Stocks!$A$2:$H$101,3,FALSE))) ->  | E26: =IF(A26="","",IF(A26>0,VLOOKUP(A26,Stocks!$A$2:$H$101,7,FALSE))) ->  | G26: =IF(A26="","",IF(A26>0,E26*F26)) ->  | H26: =IF(A26="",C5,A26) -> 86
B27: =IF(A27="","",IF(A27>0,VLOOKUP(A27,Stocks!$A$2:$C$101,2,FALSE))) ->  | C27: =IF(A27="","",IF(A27>0,VLOOKUP(A27,Stocks!$A$2:$H$101,3,FALSE))) ->  | E27: =IF(A27="","",IF(A27>0,VLOOKUP(A27,Stocks!$A$2:$H$101,7,FALSE))) ->  | H27: 38
B28: =IF(A28="","",IF(A28>0,VLOOKUP(A28,Stocks!$A$2:$C$101,2,FALSE))) ->  | C28: =IF(A28="","",IF(A28>0,VLOOKUP(A28,Stocks!$A$2:$H$101,3,FALSE))) ->  | E28: =IF(A28="","",IF(A28>0,VLOOKUP(A28,Stocks!$A$2:$H$101,7,FALSE))) ->  | H28: 5
A29: 78 | B29: =IF(A29="","",IF(A29>0,VLOOKUP(A29,Stocks!$A$2:$C$101,2,FALSE))) -> Regeneron Pharmaceuticals | C29: =IF(A29="","",IF(A29>0,VLOOKUP(A29,Stocks!$A$2:$H$101,3,FALSE))) -> REGN | E29: =IF(A29="","",IF(A29>0,VLOOKUP(A29,Stocks!$A$2:$H$101,7,FALSE))) -> 271.75 | F29: 3 | G29: 815.25 | H29: 78
G30: =SUM(G25:G29) -> 815.25

Sheet 2015
A1: 2015
A2: 2014 Investment Portfolio | E2: Jan 2014 | F2: # of Shares | G2: Total | H2: Jan, 2015
E3: Stock Price | H3: Stock Price
A4: 1 | B4: =VLOOKUP(C4,Stocks!$A$2:$H$101,2,FALSE) -> Dr Pepper Snapple | C4: ='2014'!H25 -> 29 | D4: =VLOOKUP(C4,Stocks!$A$2:$C$101,3,FALSE) -> DPS | E4: =VLOOKUP(C4,Stocks!$A$2:$H$101,7,FALSE) -> 47.88 | F4: =IF('2014'!F25="",'2014'!F4,'2014'!F25) -> 1 | G4: =E4*F4 -> 47.88 | H4: =VLOOKUP(C4,Stocks!$A$2:$H$101,8,FALSE) -> 71.6 | I4: =H4-E4 -> 23.72 | J4: =F4*H4 -> 71.6
A5: 2 | B5: =VLOOKUP(C5,Stocks!$A$2:$H$101,2,FALSE) -> Toyota | C5: ='2014'!H26 -> 86 | D5: =VLOOKUP(C5,Stocks!$A$2:$C$101,3,FALSE) -> TM | E5: =VLOOKUP(C5,Stocks!$A$2:$H$101,7,FALSE) -> 119.19 | F5: =IF('2014'!F26="",'2014'!F5,'2014'!F26) -> 2 | G5: =E5*F5 -> 238.38 | H5: =VLOOKUP(C5,Stocks!$A$2:$H$101,8,FALSE) -> 128.88 | I5: =H5-E5 -> 9.69 | J5: =F5*H5 -> 257.76 | L5: Stock Portfolio
A6: 3 | B6: =VLOOKUP(C6,Stocks!$A$2:$H$101,2,FALSE) -> General Motors | C6: ='2014'!H27 -> 38 | D6: =VLOOKUP(C6,Stocks!$A$2:$C$101,3,FALSE) -> GM | E6: =VLOOKUP(C6,Stocks!$A$2:$H$101,7,FALSE) -> 36.08 | F6: =IF('2014'!F27="",'2014'!F6,'2014'!F27) -> 1 | G6: 36.08 | H6: =VLOOKUP(C6,Stocks!$A$2:$H$101,8,FALSE) -> 32.62 | I6: -3.46 | J6: 32.62 | L6: Total Increase: | M6: =J9-G9 -> 359.37
A7: 4 | B7: =VLOOKUP(C7,Stocks!$A$2:$H$101,2,FALSE) -> Amazon | C7: ='2014'!H28 -> 5 | D7: =VLOOKUP(C7,Stocks!$A$2:$C$101,3,FALSE) -> AMZN | E7: =VLOOKUP(C7,Stocks!$A$2:$H$101,7,FALSE) -> 399.61 | F7: =IF('2014'!F28="",'2014'!F7,'2014'!F28) -> 1 | G7: 399.61 | H7: =VLOOKUP(C7,Stocks!$A$2:$H$101,8,FALSE) -> 308.52 | I7: -91.09 | J7: 308.52 | L7: 2014 Portfolio: | M7: =J9 -> 1896.57
A8: 5 | B8: =VLOOKUP(C8,Stocks!$A$2:$H$101,2,FALSE) -> Regeneron Pharmaceuticals | C8: ='2014'!H29 -> 78 | D8: =VLOOKUP(C8,Stocks!$A$2:$C$101,3,FALSE) -> REGN | E8: =VLOOKUP(C8,Stocks!$A$2:$H$101,7,FALSE) -> 271.75 | F8: =IF('2014'!F29="",'2014'!F8,'2014'!F29) -> 3 | G8: 815.25 | H8: =VLOOKUP(C8,Stocks!$A$2:$H$101,8,FALSE) -> 408.69 | I8: 136.94 | J8: 1226.07 | L8: 2014 Sell: | M8: =F20 -> 1226.07
G9: =SUM(G4:G8) -> 1537.2 | J9: =SUM(J4:J8) -> 1896.57 | L9: 2014 Buy: | M9: =G30 -> 124.68
M10: =M7-M8+M9 -> 795.18
A11: SELL
L12: Cash
L13: Starting Cash | M13: ='2014'!M15 -> 41.43
D14: Current | F14: Sell | L14: Liquid Assets | M14: =F20-G30 -> 1101.39
D15: =D4 -> DPS | L15: Total Cash | M15: =M13+M14 -> 1142.82
D16: =D5 -> TM
D17: =D6 -> GM
D18: =D7 -> AMZN
D19: =D8 -> REGN | F19: =J8 -> 1226.07
F20: =SUM(F15:F19) -> 1226.07
A22: BUY
B24: Buy | F24: Shares | G24: Total
B25: =IF(A25="","",IF(A25>0,VLOOKUP(A25,Stocks!$A$2:$C$101,2,FALSE))) ->  | C25: =IF(A25="","",IF(A25>0,VLOOKUP(A25,Stocks!$A$2:$H$101,3,FALSE))) ->  | E25: =IF(A25="","",IF(A25>0,VLOOKUP(A25,Stocks!$A$2:$H$101,8,FALSE))) ->  | G25: =IF(A25="","",IF(A25>0,E25*F25)) ->  | H25: =IF(A25="",C4,A25) -> 29
B26: =IF(A26="","",IF(A26>0,VLOOKUP(A26,Stocks!$A$2:$C$101,2,FALSE))) ->  | C26: =IF(A26="","",IF(A26>0,VLOOKUP(A26,Stocks!$A$2:$H$101,3,FALSE))) ->  | E26: =IF(A26="","",IF(A26>0,VLOOKUP(A26,Stocks!$A$2:$H$101,8,FALSE))) ->  | G26: =IF(A26="","",IF(A26>0,E26*F26)) ->  | H26: =IF(A26="",C5,A26) -> 86
B27: =IF(A27="","",IF(A27>0,VLOOKUP(A27,Stocks!$A$2:$C$101,2,FALSE))) ->  | C27: =IF(A27="","",IF(A27>0,VLOOKUP(A27,Stocks!$A$2:$H$101,3,FALSE))) ->  | E27: =IF(A27="","",IF(A27>0,VLOOKUP(A27,Stocks!$A$2:$H$101,8,FALSE))) ->  | H27: 38
B28: =IF(A28="","",IF(A28>0,VLOOKUP(A28,Stocks!$A$2:$C$101,2,FALSE))) ->  | C28: =IF(A28="","",IF(A28>0,VLOOKUP(A28,Stocks!$A$2:$H$101,3,FALSE))) ->  | E28: =IF(A28="","",IF(A28>0,VLOOKUP(A28,Stocks!$A$2:$H$101,8,FALSE))) ->  | H28: 5
A29: 43 | B29: =IF(A29="","",IF(A29>0,VLOOKUP(A29,Stocks!$A$2:$C$101,2,FALSE))) -> Honda | C29: =IF(A29="","",IF(A29>0,VLOOKUP(A29,Stocks!$A$2:$H$101,3,FALSE))) -> HMC | E29: =IF(A29="","",IF(A29>0,VLOOKUP(A29,Stocks!$A$2:$H$101,8,FALSE))) -> 31.17 | F29: 4 | G29: 124.68 | H29: 43
G30: =SUM(G25:G29) -> 124.68

Sheet Today
A1: Today
A2: 2015 Investment Portfolio | E2: Jan 2015 | F2: # of Shares | G2: Total | H2: Today's
E3: Stock Price | H3: Stock Price
A4: 1 | B4: =IF('2015'!B25="",'2015'!B4,'2015'!B25) -> Dr Pepper Snapple | C4: ='2015'!H25 -> 29 | D4: =VLOOKUP(C4,Stocks!$A$2:$C$101,3,FALSE) -> DPS | E4: =VLOOKUP(C4,Stocks!$A$2:$M$101,8,FALSE) -> 71.6 | F4: =IF('2015'!F25="",'2015'!F4,'2015'!F25) -> 1 | G4: =E4*F4 -> 71.6 | H4: 86.26 | I4: =H4-E4 -> 14.66 | J4: =F4*H4 -> 86.26
A5: 2 | B5: =IF('2015'!B26="",'2015'!B5,'2015'!B26) -> Toyota | C5: ='2015'!H26 -> 86 | D5: =VLOOKUP(C5,Stocks!$A$2:$C$101,3,FALSE) -> TM | E5: =VLOOKUP(C5,Stocks!$A$2:$M$101,8,FALSE) -> 128.88 | F5: =IF('2015'!F26="",'2015'!F5,'2015'!F26) -> 2 | G5: =E5*F5 -> 257.76 | H5: 122.92 | I5: =H5-E5 -> -5.96 | J5: =F5*H5 -> 245.84 | L5: Stock Portfolio
A6: 3 | B6: =IF('2015'!B27="",'2015'!B6,'2015'!B27) -> General Motors | C6: ='2015'!H27 -> 38 | D6: =VLOOKUP(C6,Stocks!$A$2:$C$101,3,FALSE) -> GM | E6: =VLOOKUP(C6,Stocks!$A$2:$M$101,8,FALSE) -> 32.62 | F6: =IF('2015'!F27="",'2015'!F6,'2015'!F27) -> 1 | G6: 32.62 | H6: 35.75 | I6: 3.13 | J6: 35.75 | L6: Total Increase: | M6: =J9-G9 -> 362.08
A7: 4 | B7: =IF('2015'!B28="",'2015'!B7,'2015'!B28) -> Amazon | C7: ='2015'!H28 -> 5 | D7: =VLOOKUP(C7,Stocks!$A$2:$C$101,3,FALSE) -> AMZN | E7: =VLOOKUP(C7,Stocks!$A$2:$M$101,8,FALSE) -> 308.52 | F7: =IF('2015'!F28="",'2015'!F7,'2015'!F28) -> 1 | G7: 308.52 | H7: 659.37 | I7: 350.85 | J7: 659.37 | L7: Today's Portfolio: | M7: =J9 -> 1157.26
A8: 5 | B8: =IF('2015'!B29="",'2015'!B8,'2015'!B29) -> Honda | C8: ='2015'!H29 -> 43 | D8: =VLOOKUP(C8,Stocks!$A$2:$C$101,3,FALSE) -> HMC | E8: =VLOOKUP(C8,Stocks!$A$2:$M$101,8,FALSE) -> 31.17 | F8: =IF('2015'!F29="",'2015'!F8,'2015'!F29) -> 4 | G8: 124.68 | H8: 32.51 | I8: 1.34 | J8: 130.04 | L8: Liquid Assets: | M8: ='2015'!M15 -> 1142.82
G9: =SUM(G4:G8) -> 795.18 | J9: =SUM(J4:J8) -> 1157.26 | M9: =SUM(M7:M8) -> 2300.08

Sheet Stocks
D1: 2011 | E1: 2012 | F1: 2013 | G1: 2014 | H1: 2015
A2: 1 | B2: Apple | C2: AAPL | D2: 48.02 | E2: 59.97 | F2: 74.33 | G2: 76.13 | H2: 109.33 | I2: NASDAQ
A3: 2 | B3: Alliance Fiber Optic | C3: ADS | D3: 71.64 | E3: 108.49 | F3: 151.1 | G3: 256.89 | H3: 289.55 | I3: NYSE
A4: 3 | B4: Assurant, Inc. | C4: AIZ | D4: 39.31 | E4: 41.17 | F4: 36.19 | G4: 67.74 | H4: 65.18 | I4: NYSE
A5: 4 | B5: Allstate | C5: ALL | D5: 31.35 | E5: 23.98 | F5: 43.21 | G5: 54.09 | H5: 70.42 | I5: NYSE
A6: 5 | B6: Amazon | C6: AMZN | D6: 185.49 | E6: 173.1 | F6: 267.94 | G6: 399.61 | H6: 308.52 | I6: NASDAQ
A7: 6 | B7: Aeropostale | C7: ARO | D7: 24.83 | E7: 16.39 | F7: 13.81 | G7: 7.71 | H7: 2.97 | I7: NYSE
A8: 7 | B8: Avery Dennison Corp | C8: AVY | D8: 41.49 | E8: 28.8 | F8: 35.93 | G8: 51.15 | H8: 51.79 | I8: NYSE
A9: 8 | B9: American Express | C9: AXP | D9: 46 | E9: 49.76 | F9: 59.61 | G9: 86.95 | H9: 93.02 | I9: NYSE
A10: 9 | B10: Bank of America Corp | C10: BAC | D10: 15.25 | E10: 6.61 | F10: 12.11 | G10: 16.41 | H10: 15.73 | I10: NYSE
A11: 10 | B11: Blackberry | C11: BBRY | D11: 64.77 | E11: 16.17 | F11: 17.54 | G11: 9.08 | H11: 10.38 | I11: NYSE
A12: 11 | B12: Build-a-Bear Workshop | C12: BBW | D12: 7.61 | E12: 7.87 | F12: 4.61 | G12: 8.73 | H12: 22.44 | I12: NYSE
A13: 12 | B13: Barnes & Noble | C13: BKS | D13: 16.88 | E13: 16.16 | F13: 12.76 | G13: 14.68 | H13: 24.8 | I13: NYSE
A14: 13 | B14: Citigroup | C14: C | D14: 51.3 | E14: 28.55 | F14: 42.43 | G14: 54.72 | H14: 46.95 | I14: NYSE
A15: 14 | B15: Cabelas Inc | C15: CAB | D15: 22.15 | E15: 25.15 | F15: 51.92 | G15: 65.79 | H15: 54.93 | I15: NYSE
A16: 15 | B16: Cardinal Health Inc. | C16: CAH | D16: 40.59 | E16: 41.52 | F16: 44.64 | G16: 69.32 | H16: 80.51 | I16: NYSE
A17: 16 | B17: CBS Corporation | C17: CBS | D17: 19.94 | E17: 27.79 | F17: 40.42 | G17: 63.14 | H17: 54.79 | I17: NYSE
A18: 17 | B18: Carnival Corp | C18: CCL | D18: 47.85 | E18: 34.28 | F18: 37.06 | G18: 41.36 | H18: 46.3 | I18: NYSE
A19: 18 | B19: Colgate | C19: CL | D19: 39.16 | E19: 44.9 | F19: 53.55 | G19: 64.7 | H19: 69.3 | I19: NYSE
A20: 19 | B20: Comcast Corporation | C20: CMCSA | D20: 22.84 | E20: 25.38 | F20: 38.46 | G20: 51.07 | H20: 56.31 | I20: NASDAQ
A21: 20 | B21: Cinemark Holdings Inc. | C21: CNK | D21: 16.82 | E21: 19.76 | F21: 27.22 | G21: 32.42 | H21: 37.17 | I21: NYSE
A22: 21 | B22: Costco | C22: COST | D22: 70.65 | E22: 81.13 | F22: 101.2 | G22: 117.29 | H22: 141.61 | I22: NASDAQ
A23: 22 | B23: Campbell Soup Company | C23: CPB | D23: 35.32 | E23: 31.75 | F23: 36.29 | G23: 41.79 | H23: 44 | I23: NYSE
A24: 23 | B24: Cirrus Logic | C24: CRUS | D24: 15.98 | E24: 16.5 | F24: 29.39 | G24: 17.51 | H24: 26.5 | I24: NASDAQ | R24: 1st Buy | S24: 2nd Buy | T24: 3rd Buy | U24: 4th Buy | V24: 5th Buy
A25: 24 | B25: Century Link | C25: CTL | D25: 43.02 | E25: 36.59 | F25: 40.02 | G25: 31.6 | H25: 38.4 | I25: NYSE | R25: =RANDBETWEEN(1,100) -> 71 | S25: =IF('2012'!F15=0,"",IF('2012'!F15>0,RANDBETWEEN(1,100))) -> 50 | T25: =IF('2013'!F15=0,"",IF('2013'!F15>0,RANDBETWEEN(1,100))) -> 19 | U25: =IF('2014'!F15=0,"",IF('2014'!F15>0,RANDBETWEEN(1,100))) ->  | V25: =IF('2015'!F15=0,"",IF('2015'!F15>0,RANDBETWEEN(1,100))) -> 
A26: 25 | B26: Delta Airlines | C26: DAL | D26: 11.54 | E26: 8.85 | F26: 12.98 | G26: 29.23 | H26: 50.56 | I26: NYSE | R26: =RANDBETWEEN(1,100) -> 19 | S26: =IF('2012'!F16=0,"",IF('2012'!F16>0,RANDBETWEEN(1,100))) ->  | T26: =IF('2013'!F16=0,"",IF('2013'!F16>0,RANDBETWEEN(1,100))) -> 52 | U26: =IF('2014'!F16=0,"",IF('2014'!F16>0,RANDBETWEEN(1,100))) ->  | V26: =IF('2015'!F16=0,"",IF('2015'!F16>0,RANDBETWEEN(1,100))) -> 
A27: 26 | B27: 3D Systems | C27: DDD | D27: 12.28 | E27: 12.27 | F27: 39.23 | G27: 96.42 | H27: 29.08 | I27: NYSE | R27: =RANDBETWEEN(1,100) -> 3 | S27: =IF('2012'!F17=0,"",IF('2012'!F17>0,RANDBETWEEN(1,100))) ->  | T27: =IF('2013'!F17=0,"",IF('2013'!F17>0,RANDBETWEEN(1,100))) ->  | U27: =IF('2014'!F17=0,"",IF('2014'!F17>0,RANDBETWEEN(1,100))) ->  | V27: =IF('2015'!F17=0,"",IF('2015'!F17>0,RANDBETWEEN(1,100))) -> 
A28: 27 | B28: Walt Disney Co | C28: DIS | D28: 39.45 | E28: 38.4 | F28: 52.19 | G28: 75.39 | H28: 93.75 | I28: NYSE | R28: =RANDBETWEEN(1,100) -> 100 | S28: =IF('2012'!F18=0,"",IF('2012'!F18>0,RANDBETWEEN(1,100))) ->  | T28: =IF('2013'!F18=0,"",IF('2013'!F18>0,RANDBETWEEN(1,100))) ->  | U28: =IF('2014'!F18=0,"",IF('2014'!F18>0,RANDBETWEEN(1,100))) ->  | V28: =IF('2015'!F18=0,"",IF('2015'!F18>0,RANDBETWEEN(1,100))) -> 
A29: 28 | B29: Dick's Sporting Goods | C29: DKS | D29: 35.42 | E29: 34.64 | F29: 48.82 | G29: 57.59 | H29: 49.94 | I29: NYSE | R29: =RANDBETWEEN(1,100) -> 6 | S29: =IF('2012'!F19=0,"",IF('2012'!F19>0,RANDBETWEEN(1,100))) -> 13 | T29: =IF('2013'!F19=0,"",IF('2013'!F19>0,RANDBETWEEN(1,100))) ->  | U29: =IF('2014'!F19=0,"",IF('2014'!F19>0,RANDBETWEEN(1,100))) -> 42 | V29: =IF('2015'!F19=0,"",IF('2015'!F19>0,RANDBETWEEN(1,100))) -> 30
A30: 29 | B30: Dr Pepper Snapple | C30: DPS | D30: 35.55 | E30: 37.67 | F30: 45.3 | G30: 47.88 | H30: 71.6 | I30: NYSE
A31: 30 | B31: Datalink Corporation | C31: DTLK | D31: 5.79 | E31: 8.89 | F31: 9.18 | G31: 13.81 | H31: 12.97 | I31: NASDAQ
A32: 31 | B32: Dreamworks | C32: DWA | D32: 28.76 | E32: 18.25 | F32: 16.64 | G32: 33.74 | H32: 18.67 | I32: NASDAQ
A33: 32 | B33: EA Games | C33: EA | D33: 15 | E33: 18.04 | F33: 14.46 | G33: 24.1 | H33: 54.86 | I33: NASDAQ
A34: 33 | B34: Ebay | C34: EBAY | D34: 27.7 | E34: 30.63 | F34: 54.21 | G34: 52.16 | H34: 53 | I34: NYSE
A35: 34 | B35: Ford | C35: F | D35: 18.65 | E35: 11.71 | F35: 13.68 | G35: 15.51 | H35: 15.21 | I35: NYSE
A36: 35 | B36: Fedex | C36: FDX | D36: 93.15 | E36: 85.49 | F36: 94.91 | G36: 142.63 | H36: 176.01 | I36: NYSE
A37: 36 | B37: 21st Century Fox | C37: FOX | D37: 16.91 | E37: 18.92 | F37: 27.83 | G37: 34.66 | H37: 31.85 | I37: NASDAQ
A38: 37 | B38: General Electric | C38: GE | D38: 18.82 | E38: 18.65 | F38: 21.13 | G38: 25.13 | H38: 23.59 | I38: NYSE
A39: 38 | B39: General Motors | C39: GM | D39: 38.98 | E39: 22.92 | F39: 29.07 | G39: 36.08 | H39: 32.62 | I39: NYSE
A40: 39 | B40: Game Stop | C40: GME | D40: 20.77 | E40: 24.87 | F40: 23.71 | G40: 37.65 | H40: 32.27 | I40: NYSE
A41: 40 | B41: Rangold Resources LTD | C41: GOLD | D41: 76.43 | E41: 106.75 | F41: 95.83 | G41: 70.11 | H41: 74.91 | I41: NASDAQ
A42: 41 | B42: Gap Inc. | C42: GPS | D42: 19.2 | E42: 18 | F42: 33.54 | G42: 37.3 | H42: 42.02 | I42: NYSE
A43: 42 | B43: Goldman Sachs | C43: GS | D43: 175 | E43: 108.74 | F43: 137.13 | G43: 178.39 | H43: 180.49 | I43: NYSE
A44: 43 | B44: Honda | C44: HMC | D44: 40.24 | E44: 32.13 | F44: 37.75 | G44: 39.76 | H44: 31.17 | I44: NYSE
A45: 44 | B45: Hewlett Packard | C45: HPQ | D45: 45.09 | E45: 26.4 | F45: 16.16 | G45: 28.34 | H45: 36.13 | I45: NYSE
A46: 45 | B46: Hershey Co. | C46: HSY | D46: 49.39 | E46: 60.69 | F46: 74.54 | G46: 95.81 | H46: 110.66 | I46: NYSE
A47: 46 | B47: Jet Blue | C47: JBLU | D47: 7.08 | E47: 5.45 | F47: 5.95 | G47: 9.05 | H47: 14.85 | I47: NYSE
A48: 47 | B48: Johnson & Johnson | C48: JNJ | D48: 62.6 | E48: 65.27 | F48: 71.55 | G48: 94.74 | H48: 104.52 | I48: NYSE
A49: 48 | B49: JP Morgan | C49: JPM | D49: 44.91 | E49: 35.36 | F49: 47.16 | G49: 58.49 | H49: 54.38 | I49: NYSE
A50: 49 | B50: Nordstrom | C50: JWN | D50: 40.91 | E50: 49.74 | F50: 55.12 | G50: 61.11 | H50: 78.5 | I50: NYSE
A51: 50 | B51: Kellog Stock | C51: K | D51: 51 | E51: 50.81 | F51: 57.02 | G51: 60.58 | H51: 68.68 | I51: NYSE
A52: 51 | B52: Kimberly Clark Corp | C52: KMB | D52: 62.99 | E52: 72.7 | F52: 85.1 | G52: 104.35 | H52: 107.96 | I52: NYSE
A53: 52 | B53: The Coca-Cola Co | C53: KO | D53: 31.1 | E53: 33.5 | F53: 38.77 | G53: 40.13 | H53: 43.31 | I53: NYSE
A54: 53 | B54: Lee Enterprises | C54: LEE | D54: 2.82 | E54: 0.75 | F54: 1.33 | G54: 4.2 | H54: 3.13 | I54: NYSE
A55: 54 | B55: L-3 Communications | C55: LLL | D55: 75.87 | E55: 67.07 | F55: 77.71 | G55: 106.32 | H55: 125.67 | I55: NYSE
A56: 55 | B56: Logitech | C56: LOGI | D56: 19.13 | E56: 8.05 | F56: 7.24 | G56: 15.46 | H56: 14.94 | I56: NASDAQ
A57: 56 | B57: Southwest Airlines | C57: LUV | D57: 13.29 | E57: 8.52 | F57: 11.26 | G57: 21.22 | H57: 40.75 | I57: NYSE
A58: 57 | B58: La-Z Boy Incorporated | C58: LZB | D58: 8.89 | E58: 12.77 | F58: 15.27 | G58: 30.97 | H58: 27.01 | I58: NYSE
A59: 58 | B59: Macy's, Inc. | C59: M | D59: 23.31 | E59: 34.56 | F59: 36.89 | G59: 56.23 | H59: 65.83 | I59: NYSE
A60: 59 | B60: Mattel Inc. | C60: MAT | D60: 23.51 | E60: 29.35 | F60: 38.03 | G60: 46.87 | H60: 27.82 | I60: NASDAQ
A61: 60 | B61: McDonalds | C61: MCD | D61: 74.06 | E61: 101.74 | F61: 91.73 | G61: 96.54 | H61: 89.56 | I61: NYSE
A62: 61 | B62: Metlife | C62: MET | D62: 46.21 | E62: 35.24 | F62: 35.95 | G62: 54.1 | H62: 53.91 | I62: NYSE
A63: 62 | B63: 3M | C63: MMM | D63: 86.23 | E63: 87.46 | F63: 100.59 | G63: 138.45 | H63: 161.62 | I63: NYSE
A64: 63 | B64: Microsoft | C64: MSFT | D64: 28.6 | E64: 28.11 | F64: 26.74 | G64: 36.91 | H64: 47.18 | I64: NASDAQ
A65: 64 | B65: Motorolla | C65: MSI | D65: 38.9 | E65: 46.55 | F65: 57.5 | G65: 66.1 | H65: 65.11 | I65: NYSE
A66: 65 | B66: Nestle | C66: NESN | D66: 51.35 | E66: 53.2 | F66: 63.4 | G66: 66.85 | H66: 64.8 | I66: NYSE
A67: 66 | B67: Newmarket Corp | C67: NEU | D67: 129.59 | E67: 218.6 | F67: 286.54 | G67: 333.61 | H67: 402.09 | I67: NYSE
A68: 67 | B68: Nike | C68: NKE | D68: 41.76 | E68: 50.88 | F68: 53.29 | G68: 73.39 | H68: 95.99 | I68: NYSE
A69: 68 | B69: Nokia | C69: NOK | D69: 9.55 | E69: 5.24 | F69: 4.18 | G69: 7.79 | H69: 7.55 | I69: NYSE
A70: 69 | B70: Nu Skin Enterprises | C70: NUS | D70: 30.97 | E70: 47.26 | F70: 45.08 | G70: 137.68 | H70: 41.61 | I70: NYSE
A71: 70 | B71: Newell Rubbermaid | C71: NWL | D71: 17.7 | E71: 17.19 | F71: 21.8 | G71: 32.4 | H71: 38.16 | I71: NYSE
A72: 71 | B72: Pep Boys | C72: PBY | D72: 13.19 | E72: 10.6 | F72: 10.63 | G72: 11.8 | H72: 8.43 | I72: NYSE
A73: 72 | B73: PepsiCo Inc. | C73: PEP | D73: 66.39 | E73: 65.39 | F73: 70.88 | G73: 83.5 | H73: 96.82 | I73: NYSE
A74: 73 | B74: Procter & Gamble Co | C74: PG | D74: 64.2 | E74: 65.81 | F74: 69.22 | G74: 80.3 | H74: 84.29 | I74: NYSE
A75: 74 | B75: Progressive Corp. | C75: PGR | D75: 19.47 | E75: 20.43 | F75: 22.72 | G75: 25.94 | H75: 26.92 | I75: NYSE
A76: 75 | B76: Pier 1 Imports | C76: PIR | D76: 9.43 | E76: 15 | F76: 22.02 | G76: 21.57 | H76: 16.36 | I76: NYSE
A77: 76 | B77: Rite Aid Corporation | C77: RAD | D77: 1.39 | E77: 1.38 | F77: 1.56 | G77: 5.47 | H77: 7.51 | I77: NYSE
A78: 77 | B78: Royal Caribbean Cruises | C78: RCL | D78: 49.96 | E78: 25.5 | F78: 38.42 | G78: 49.09 | H78: 82.95 | I78: NYSE
A79: 78 | B79: Regeneron Pharmaceuticals | C79: REGN | D79: 34.1 | E79: 65.79 | F79: 179.46 | G79: 271.75 | H79: 408.69 | I79: NASDAQ
A80: 79 | B80: Sturm, Ruger & Company | C80: RGR | D80: 14.85 | E80: 38.68 | F80: 47.51 | G80: 80.55 | H80: 38.71 | I80: NYSE
A81: 80 | B81: Starbucks Corporation | C81: SBUX | D81: 16.35 | E81: 23.68 | F81: 27.4 | G81: 38.84 | H81: 39.9 | I81: NYSE
A82: 81 | B82: JM Smucker Co | C82: SJM | D82: 61.84 | E82: 78.59 | F82: 90.2 | G82: 101.51 | H82: 101.86 | I82: NYSE
A83: 82 | B83: Sony | C83: SNE | D83: 35.88 | E83: 17.44 | F83: 11.09 | G83: 15.75 | H83: 22.6 | I83: NYSE
A84: 83 | B84: Solar Winds | C84: SWI | D84: 20.27 | E84: 27.53 | F84: 54.81 | G84: 38.11 | H84: 49.54 | I84: NYSE
A85: 84 | B85: AT&T | C85: T | D85: 27.92 | E85: 30.51 | F85: 33.44 | G85: 34.8 | H85: 33.37 | I85: NYSE
A86: 85 | B86: Target | C86: TGT | D86: 54.35 | E86: 50.17 | F86: 61.54 | G86: 60.24 | H86: 74.94 | I86: NYSE
A87: 86 | B87: Toyota | C87: TM | D87: 82.46 | E87: 71.4 | F87: 96.1 | G87: 119.19 | H87: 128.88 | I87: NYSE
A88: 87 | B88: Tesoro | C88: TSO | D88: 19.35 | E88: 22.95 | F88: 42.17 | G88: 52.58 | H88: 75.5 | I88: NYSE
A89: 88 | B89: Time Warner Cable Inc. | C89: TWC | D89: 65.61 | E89: 69.05 | F89: 100.54 | G89: 133.36 | H89: 146.76 | I89: NYSE
A90: 89 | B90: Tyler Technologies | C90: TYL | D90: 20.36 | E90: 31.81 | F90: 50.01 | G90: 105.45 | H90: 107.85 | I90: NYSE
A91: 90 | B91: Under Armour Inc. | C91: UA | D91: 13.31 | E91: 19.29 | F91: 24.04 | G91: 41 | H91: 69.82 | I91: NYSE
A92: 91 | B92: UnitedHealth Group | C92: UNH | D92: 40.41 | E92: 52.27 | F92: 52.09 | G92: 74.7 | H92: 100.78 | I92: NYSE
A93: 92 | B93: United Parcel Service | C93: UPS | D93: 72.48 | E93: 73.48 | F93: 76.57 | G93: 96.33 | H93: 98.87 | I93: NYSE
A94: 93 | B94: Visa Inc. | C94: V | D94: 17.54 | E94: 25.18 | F94: 39.19 | G94: 58.04 | H94: 63.74 | I94: NYSE
A95: 94 | B95: Viacom | C95: VIAB | D95: 40.52 | E95: 46.89 | F95: 59.02 | G95: 85.4 | H95: 64.42 | I95: NYSE
A96: 95 | B96: Verizon | C96: VZ | D96: 35.93 | E96: 38.33 | F96: 42.54 | G96: 48.42 | H96: 47.99 | I96: NYSE
A97: 96 | B97: Walmart | C97: WMT | D97: 56.7 | E97: 61.01 | F97: 69 | G97: 78.65 | H97: 89.35 | I97: NYSE
A98: 97 | B98: Watsco Inc. | C98: WSO | D98: 61.83 | E98: 67.61 | F98: 76.15 | G98: 96.62 | H98: 110.74 | I98: NYSE
A99: 98 | B99: Exxon Mobil Corporation | C99: XOM | D99: 75.59 | E99: 87.49 | F99: 91.73 | G99: 99.16 | H99: 90.89 | I99: NYSE
A100: 99 | B100: Yahoo | C100: YHOO | D100: 16.81 | E100: 15.52 | F100: 19.29 | G100: 41.23 | H100: 46.47 | I100: NASDAQ
A101: 100 | B101: YUM! Brands | C101: YUM | D101: 46.4 | E101: 61.23 | F101: 65.15 | G101: 72.1 | H101: 72.43 | I101: NYSE
